[Event "Early-Titled-Tuesday-Blitz-February-20-2024"]
[Site "Chess.com"]
[Date "2024.02.20"]
[Round "1"]
[White "NM_Antelacus"]
[Black "Dinosaurio_1975"]
[Result "0-1"]
[WhiteElo "2246"]
[BlackElo "2610"]
[TimeControl "180+1"]
[EndTime "8:08:03 PST"]
[Termination "Dinosaurio_1975 won by checkmate"]

1. e4 {[%clk 0:03:00.9]} 1... e6 {[%clk 0:02:55.2]} 2. d4 {[%clk 0:03:00.1]}
2... d5 {[%clk 0:02:56.1]} 3. e5 {[%clk 0:03:00.4]} 3... c5 {[%clk 0:02:55.6]}
4. c3 {[%clk 0:03:00.7]} 4... Nc6 {[%clk 0:02:56.1]} 5. Nf3 {[%clk 0:03:00.8]}
5... Bd7 {[%clk 0:02:55.6]} 6. a3 {[%clk 0:03:00.5]} 6... c4 {[%clk 0:02:54.9]}
7. Be2 {[%clk 0:02:59.8]} 7... Qc7 {[%clk 0:02:54.9]} 8. O-O {[%clk 0:02:59.6]}
8... O-O-O {[%clk 0:02:54.5]} 9. Ng5 {[%clk 0:02:54]} 9... Be8 {[%clk
0:02:53.5]} 10. f4 {[%clk 0:02:53.3]} 10... Kb8 {[%clk 0:02:51.7]} 11. Be3
{[%clk 0:02:49.9]} 11... f6 {[%clk 0:02:51.4]} 12. Nf3 {[%clk 0:02:44.5]} 12...
Na5 {[%clk 0:02:46.5]} 13. Nbd2 {[%clk 0:02:43.4]} 13... Ne7 {[%clk 0:02:45.9]}
14. Bf2 {[%clk 0:02:41.7]} 14... Bd7 {[%clk 0:02:34.1]} 15. Qc2 {[%clk
0:02:38.5]} 15... Nc8 {[%clk 0:02:28.3]} 16. b4 {[%clk 0:02:35]} 16... cxb3
{[%clk 0:02:27.3]} 17. Nxb3 {[%clk 0:02:34.4]} 17... Ba4 {[%clk 0:02:26.5]} 18.
Nfd2 {[%clk 0:02:34.3]} 18... Nb6 {[%clk 0:02:23]} 19. Rab1 {[%clk 0:02:31.1]}
19... Rc8 {[%clk 0:02:21]} 20. Rfc1 {[%clk 0:02:29.3]} 20... Bxa3 {[%clk
0:02:17]} 21. Qa2 {[%clk 0:02:08.2]} 21... Bxc1 {[%clk 0:02:02.6]} 22. Rxc1
{[%clk 0:02:06.9]} 22... Nxb3 {[%clk 0:01:59.9]} 23. Nxb3 {[%clk 0:02:06]} 23...
Bxb3 {[%clk 0:01:56.7]} 24. Qxb3 {[%clk 0:02:06]} 24... Nc4 {[%clk 0:01:51.8]}
25. Bxc4 {[%clk 0:01:51.3]} 25... Qxc4 {[%clk 0:01:52.7]} 26. Qa3 {[%clk
0:01:49.4]} 26... Rhe8 {[%clk 0:01:39.1]} 27. h3 {[%clk 0:01:46.6]} 27... Rc6
{[%clk 0:01:38.5]} 28. Qb2 {[%clk 0:01:37.8]} 28... Rb6 {[%clk 0:01:36.9]} 29.
Qd2 {[%clk 0:01:36.6]} 29... Rc8 {[%clk 0:01:36]} 30. Qe3 {[%clk 0:01:35.3]}
30... f5 {[%clk 0:01:34.6]} 31. g4 {[%clk 0:01:32.8]} 31... fxg4 {[%clk
0:01:31.9]} 32. hxg4 {[%clk 0:01:32.4]} 32... g6 {[%clk 0:01:25.1]} 33. Kg2
{[%clk 0:01:32.3]} 33... Rb3 {[%clk 0:01:24]} 34. Be1 {[%clk 0:01:31.5]} 34...
Rb2+ {[%clk 0:01:24.1]} 35. Bd2 {[%clk 0:01:16.6]} 35... Qa2 {[%clk 0:01:16.2]}
36. Rd1 {[%clk 0:01:14.6]} 36... Qb3 {[%clk 0:01:12.4]} 37. Rc1 {[%clk
0:01:09.2]} 37... Rc2 {[%clk 0:01:11.7]} 38. Rxc2 {[%clk 0:01:03]} 38... Qxc2
{[%clk 0:01:12.6]} 39. Kg3 {[%clk 0:00:58]} 39... a5 {[%clk 0:01:11.4]} 40. c4
{[%clk 0:00:51.4]} 40... Rxc4 {[%clk 0:00:45.7]} 41. Bxa5 {[%clk 0:00:49.6]}
41... Qa4 {[%clk 0:00:39.5]} 42. Bb6 {[%clk 0:00:19.7]} 42... Qc6 {[%clk
0:00:18.6]} 43. Bc5 {[%clk 0:00:18.1]} 43... b6 {[%clk 0:00:17.8]} 44. Bd6+
{[%clk 0:00:18.4]} 44... Kb7 {[%clk 0:00:18.4]} 45. Kh4 {[%clk 0:00:18.3]} 45...
Rc3 {[%clk 0:00:18.3]} 46. Qe2 {[%clk 0:00:16.3]} 46... Rc2 {[%clk 0:00:17.9]}
47. Qd3 {[%clk 0:00:13.2]} 47... Rc3 {[%clk 0:00:17]} 48. Qe2 {[%clk 0:00:12.8]}
48... h6 {[%clk 0:00:14.8]} 49. f5 {[%clk 0:00:11.8]} 49... exf5 {[%clk
0:00:14.2]} 50. gxf5 {[%clk 0:00:11.9]} 50... gxf5 {[%clk 0:00:14]} 51. Qh5
{[%clk 0:00:08.9]} 51... f4 {[%clk 0:00:12]} 52. Qf7+ {[%clk 0:00:08.3]} 52...
Ka6 {[%clk 0:00:11.8]} 53. Qxf4 {[%clk 0:00:08.9]} 53... Qd7 {[%clk 0:00:09.6]}
54. Qf6 {[%clk 0:00:05.8]} 54... Rh3# {[%clk 0:00:09]} 0-1

[Event "Early-Titled-Tuesday-Blitz-February-20-2024"]
[Site "Chess.com"]
[Date "2024.02.20"]
[Round "1"]
[White "rquery98"]
[Black "LimeInTheCoconut"]
[Result "1-0"]
[WhiteElo "2761"]
[BlackElo "2412"]
[TimeControl "180+1"]
[EndTime "8:08:06 PST"]
[Termination "rquery98 won by resignation"]

1. c4 {[%clk 0:03:00.9]} 1... e5 {[%clk 0:02:58.4]} 2. g3 {[%clk 0:03:00.7]}
2... Nf6 {[%clk 0:02:54.3]} 3. Bg2 {[%clk 0:03:00.2]} 3... c6 {[%clk 0:02:54.9]}
4. Nf3 {[%clk 0:02:59.7]} 4... e4 {[%clk 0:02:50.1]} 5. Nd4 {[%clk 0:02:57.3]}
5... Qb6 {[%clk 0:02:49.5]} 6. Nb3 {[%clk 0:02:46.1]} 6... d5 {[%clk 0:02:33.8]}
7. cxd5 {[%clk 0:02:38.7]} 7... cxd5 {[%clk 0:02:34.7]} 8. d3 {[%clk 0:02:39.2]}
8... Bb4+ {[%clk 0:02:31.4]} 9. Bd2 {[%clk 0:02:30.5]} 9... e3 {[%clk 0:02:21]}
10. fxe3 {[%clk 0:02:09.2]} 10... Ng4 {[%clk 0:02:20.6]} 11. Bxb4 {[%clk
0:01:35.8]} 11... Qxb4+ {[%clk 0:01:32.9]} 12. Qd2 {[%clk 0:01:34.3]} 12... Qb6
{[%clk 0:01:19.9]} 13. Nd4 {[%clk 0:00:59.4]} 13... Qh6 {[%clk 0:00:52.2]} 14.
e4 {[%clk 0:00:27.8]} 14... Ne3 {[%clk 0:00:44.5]} 15. Bf3 {[%clk 0:00:20.6]}
15... dxe4 {[%clk 0:00:37.3]} 16. Bxe4 {[%clk 0:00:21]} 16... O-O {[%clk
0:00:29.5]} 17. Nc2 {[%clk 0:00:19.1]} 17... Nxc2+ {[%clk 0:00:27.2]} 18. Qxc2
{[%clk 0:00:20]} 18... Nc6 {[%clk 0:00:10.5]} 19. Qd2 {[%clk 0:00:19.2]} 19...
Qxd2+ {[%clk 0:00:06.4]} 20. Kxd2 {[%clk 0:00:20.1]} 20... Bd7 {[%clk
0:00:06.3]} 21. Nc3 {[%clk 0:00:18.3]} 21... Rac8 {[%clk 0:00:06.1]} 22. e3
{[%clk 0:00:18.4]} 22... Rfd8 {[%clk 0:00:05.5]} 23. d4 {[%clk 0:00:18]} 23...
b6 {[%clk 0:00:03.9]} 24. Rhf1 {[%clk 0:00:16.8]} 24... Ne7 {[%clk 0:00:04.1]}
25. Rf2 {[%clk 0:00:17]} 25... Bc6 {[%clk 0:00:04.7]} 26. Bd3 {[%clk 0:00:15.7]}
26... f6 {[%clk 0:00:04.7]} 27. Raf1 {[%clk 0:00:16.1]} 27... Nd5 {[%clk
0:00:02.8]} 28. g4 {[%clk 0:00:12.7]} 28... Nxc3 {[%clk 0:00:02.8]} 29. bxc3
{[%clk 0:00:13.6]} 29... Bd5 {[%clk 0:00:03.1]} 30. a3 {[%clk 0:00:14.1]} 30...
Bc4 {[%clk 0:00:03.6]} 31. e4 {[%clk 0:00:13.9]} 31... Bxd3 {[%clk 0:00:04]} 32.
Kxd3 {[%clk 0:00:14.8]} 32... b5 {[%clk 0:00:04.5]} 33. Rb2 {[%clk 0:00:15.1]}
33... a6 {[%clk 0:00:05]} 34. a4 {[%clk 0:00:15.4]} 34... bxa4 {[%clk
0:00:03.9]} 35. Ra1 {[%clk 0:00:16]} 35... Rb8 {[%clk 0:00:03.3]} 36. Rxb8
{[%clk 0:00:15.2]} 36... Rxb8 {[%clk 0:00:04.2]} 37. Rxa4 {[%clk 0:00:15.6]}
37... Ra8 {[%clk 0:00:04.8]} 38. c4 {[%clk 0:00:15.4]} 38... Kf7 {[%clk
0:00:05.5]} 39. c5 {[%clk 0:00:16]} 39... Ke6 {[%clk 0:00:06.1]} 40. Kc4 {[%clk
0:00:16.5]} 40... Kd7 {[%clk 0:00:06.3]} 41. d5 {[%clk 0:00:16.7]} 41... Kc7
{[%clk 0:00:06.5]} 42. Kd4 {[%clk 0:00:17.1]} 42... Kb7 {[%clk 0:00:06]} 43.
Rb4+ {[%clk 0:00:17.5]} 43... Kc7 {[%clk 0:00:06.4]} 44. d6+ {[%clk 0:00:17.1]}
44... Kc6 {[%clk 0:00:05.9]} 45. Rb6+ {[%clk 0:00:17.7]} 45... Kd7 {[%clk
0:00:06.4]} 46. Kd5 {[%clk 0:00:18.4]} 46... Ra7 {[%clk 0:00:05.9]} 47. Rb7+
{[%clk 0:00:13.1]} 47... Rxb7 {[%clk 0:00:05.2]} 48. c6+ {[%clk 0:00:13.8]}
48... Kc8 {[%clk 0:00:06]} 49. cxb7+ {[%clk 0:00:14.7]} 49... Kxb7 {[%clk
0:00:06.7]} 50. Ke6 {[%clk 0:00:15.3]} 50... Kc8 {[%clk 0:00:07.1]} 51. Ke7
{[%clk 0:00:15.8]} 1-0

[Event "Early-Titled-Tuesday-Blitz-February-20-2024"]
[Site "Chess.com"]
[Date "2024.02.20"]
[Round "1"]
[White "Nechitaylo_Nikita"]
[Black "Hsper248"]
[Result "1/2-1/2"]
[WhiteElo "2335"]
[BlackElo "2657"]
[TimeControl "180+1"]
[EndTime "8:08:12 PST"]
[Termination "Game drawn - timeout vs insufficient material"]

1. d4 {[%clk 0:02:58.2]} 1... d5 {[%clk 0:02:58.2]} 2. c4 {[%clk 0:02:58.7]}
2... c6 {[%clk 0:02:57.5]} 3. cxd5 {[%clk 0:02:58.8]} 3... cxd5 {[%clk
0:02:58.4]} 4. Bf4 {[%clk 0:02:57.5]} 4... Nc6 {[%clk 0:02:55]} 5. e3 {[%clk
0:02:57.3]} 5... Nf6 {[%clk 0:02:54.5]} 6. Nc3 {[%clk 0:02:57.6]} 6... Bf5
{[%clk 0:02:53.3]} 7. Qb3 {[%clk 0:02:57.8]} 7... Na5 {[%clk 0:02:51.1]} 8. Qa4+
{[%clk 0:02:58.4]} 8... Bd7 {[%clk 0:02:50.6]} 9. Qc2 {[%clk 0:02:58.9]} 9... e6
{[%clk 0:02:50]} 10. Nf3 {[%clk 0:02:57]} 10... Be7 {[%clk 0:02:48.8]} 11. Bd3
{[%clk 0:02:56.4]} 11... Rc8 {[%clk 0:02:48.2]} 12. h3 {[%clk 0:02:55.3]} 12...
a6 {[%clk 0:02:43.4]} 13. O-O {[%clk 0:02:50.9]} 13... Nc4 {[%clk 0:02:38.3]}
14. Qe2 {[%clk 0:02:39.3]} 14... O-O {[%clk 0:02:36.2]} 15. Ne5 {[%clk 0:02:34]}
15... b5 {[%clk 0:02:28.1]} 16. Rac1 {[%clk 0:02:24.5]} 16... Be8 {[%clk
0:02:22.7]} 17. Bh2 {[%clk 0:01:50.2]} 17... Nd7 {[%clk 0:02:08.8]} 18. f4
{[%clk 0:01:34.4]} 18... f5 {[%clk 0:02:01.5]} 19. g4 {[%clk 0:01:21.7]} 19...
Ndxe5 {[%clk 0:02:01]} 20. fxe5 {[%clk 0:01:21.1]} 20... g6 {[%clk 0:02:01.1]}
21. gxf5 {[%clk 0:00:56.8]} 21... exf5 {[%clk 0:01:56.8]} 22. b3 {[%clk
0:00:38.7]} 22... Nb6 {[%clk 0:01:55.3]} 23. Qg2 {[%clk 0:00:33.9]} 23... Kh8
{[%clk 0:01:53.6]} 24. e6 {[%clk 0:00:15.5]} 24... Rc6 {[%clk 0:01:39]} 25. Ne2
{[%clk 0:00:04.5]} 25... Bd6 {[%clk 0:01:13.1]} 26. Rxc6 {[%clk 0:00:03.1]}
26... Bxc6 {[%clk 0:01:12.8]} 27. Bxd6 {[%clk 0:00:03.5]} 27... Qxd6 {[%clk
0:01:12.5]} 28. Nf4 {[%clk 0:00:04.3]} 28... Nc8 {[%clk 0:01:09.9]} 29. Rc1
{[%clk 0:00:04.4]} 29... Bb7 {[%clk 0:01:09.8]} 30. Qg5 {[%clk 0:00:03.7]} 30...
Qe7 {[%clk 0:01:08.8]} 31. Qxe7 {[%clk 0:00:03.6]} 31... Nxe7 {[%clk 0:01:08.1]}
32. Rc7 {[%clk 0:00:04.5]} 32... Re8 {[%clk 0:00:37.5]} 33. Rxb7 {[%clk
0:00:04.4]} 33... g5 {[%clk 0:00:38]} 34. Ne2 {[%clk 0:00:02.9]} 34... Kg7
{[%clk 0:00:37.6]} 35. Bxf5 {[%clk 0:00:02.1]} 35... Kf6 {[%clk 0:00:37.5]} 36.
Bxh7 {[%clk 0:00:02.3]} 36... Rh8 {[%clk 0:00:36.3]} 37. Bd3 {[%clk 0:00:03]}
37... Rxh3 {[%clk 0:00:35]} 38. Kf2 {[%clk 0:00:03.7]} 38... Rh2+ {[%clk
0:00:35.3]} 39. Kf3 {[%clk 0:00:04.4]} 39... Rh3+ {[%clk 0:00:34.8]} 40. Ng3
{[%clk 0:00:04.8]} 40... Kxe6 {[%clk 0:00:29.7]} 41. Rb6+ {[%clk 0:00:04.4]}
41... Kf7 {[%clk 0:00:28.4]} 42. Rxa6 {[%clk 0:00:02.8]} 42... b4 {[%clk
0:00:28.4]} 43. Rb6 {[%clk 0:00:02.9]} 43... Rh2 {[%clk 0:00:29]} 44. Rxb4
{[%clk 0:00:03.1]} 44... Rxa2 {[%clk 0:00:29.6]} 45. Rb7 {[%clk 0:00:03.7]}
45... Ke6 {[%clk 0:00:27.2]} 46. Rb6+ {[%clk 0:00:04.2]} 46... Kd7 {[%clk
0:00:27.2]} 47. b4 {[%clk 0:00:04.7]} 47... Ra3 {[%clk 0:00:26.8]} 48. Bb5+
{[%clk 0:00:04.8]} 48... Kc7 {[%clk 0:00:26.4]} 49. Re6 {[%clk 0:00:05.6]} 49...
Nc8 {[%clk 0:00:25]} 50. Rc6+ {[%clk 0:00:05.5]} 50... Kb7 {[%clk 0:00:25]} 51.
Nf5 {[%clk 0:00:03.9]} 51... g4+ {[%clk 0:00:18.6]} 52. Kxg4 {[%clk 0:00:03.7]}
52... Kb8 {[%clk 0:00:16.2]} 53. Nd6 {[%clk 0:00:03.8]} 53... Na7 {[%clk
0:00:15.9]} 54. Rb6+ {[%clk 0:00:03.8]} 54... Kc7 {[%clk 0:00:16.4]} 55. Ra6
{[%clk 0:00:02.3]} 55... Rxa6 {[%clk 0:00:15]} 56. Ne8+ {[%clk 0:00:02.3]} 56...
Kb6 {[%clk 0:00:14.8]} 57. Bxa6 {[%clk 0:00:02.7]} 57... Kxa6 {[%clk 0:00:15.7]}
58. Nf6 {[%clk 0:00:03.1]} 58... Kb5 {[%clk 0:00:14.3]} 59. Nxd5 {[%clk
0:00:03.5]} 59... Kc4 {[%clk 0:00:15.2]} 1/2-1/2

[Event "Early-Titled-Tuesday-Blitz-February-20-2024"]
[Site "Chess.com"]
[Date "2024.02.20"]
[Round "1"]
[White "Hope_6"]
[Black "ExchangeAB"]
[Result "1-0"]
[WhiteElo "2802"]
[BlackElo "2449"]
[TimeControl "180+1"]
[EndTime "8:08:15 PST"]
[Termination "Hope_6 won by resignation"]

1. d4 {[%clk 0:03:00.9]} 1... d5 {[%clk 0:02:59.7]} 2. c4 {[%clk 0:03:00.5]}
2... c6 {[%clk 0:03:00.1]} 3. cxd5 {[%clk 0:03:00.3]} 3... cxd5 {[%clk 0:03:01]}
4. Nc3 {[%clk 0:03:00.5]} 4... Nf6 {[%clk 0:03:01.9]} 5. Bf4 {[%clk 0:02:59.8]}
5... Nc6 {[%clk 0:03:02.5]} 6. Nf3 {[%clk 0:03:00.4]} 6... Bf5 {[%clk
0:03:01.4]} 7. e3 {[%clk 0:03:00.3]} 7... e6 {[%clk 0:03:01.5]} 8. Bb5 {[%clk
0:02:59.1]} 8... Rc8 {[%clk 0:02:45.7]} 9. Ne5 {[%clk 0:02:56.9]} 9... Qb6
{[%clk 0:02:44.7]} 10. O-O {[%clk 0:02:52.5]} 10... Bb4 {[%clk 0:02:44.2]} 11.
Nxc6 {[%clk 0:02:41.7]} 11... bxc6 {[%clk 0:02:38.3]} 12. Ba4 {[%clk 0:02:40.1]}
12... O-O {[%clk 0:02:31.4]} 13. Rc1 {[%clk 0:02:32.1]} 13... c5 {[%clk
0:02:24.1]} 14. dxc5 {[%clk 0:02:24.2]} 14... Rxc5 {[%clk 0:02:25]} 15. Be5
{[%clk 0:02:16.8]} 15... Rcc8 {[%clk 0:02:13.8]} 16. Bd4 {[%clk 0:02:15.9]}
16... Qa5 {[%clk 0:02:09.9]} 17. Bb3 {[%clk 0:02:08.4]} 17... Rfd8 {[%clk
0:01:58.2]} 18. a3 {[%clk 0:02:05.3]} 18... Bf8 {[%clk 0:01:52.8]} 19. Na4
{[%clk 0:01:57.8]} 19... Ne4 {[%clk 0:01:35.8]} 20. f3 {[%clk 0:01:45.3]} 20...
Nd2 {[%clk 0:01:34]} 21. Bc3 {[%clk 0:01:30.2]} 21... Rxc3 {[%clk 0:00:50.2]}
22. Qxd2 {[%clk 0:01:26.2]} 22... Rc5 {[%clk 0:00:49.8]} 23. Qd4 {[%clk
0:01:19.3]} 23... Rxc1 {[%clk 0:00:47.2]} 24. Rxc1 {[%clk 0:01:18.4]} 24... Qb5
{[%clk 0:00:39.4]} 25. Ba2 {[%clk 0:01:08.5]} 25... Bg6 {[%clk 0:00:36.8]} 26.
h4 {[%clk 0:01:05.1]} 26... h5 {[%clk 0:00:36.5]} 27. Nc5 {[%clk 0:00:58]} 27...
a5 {[%clk 0:00:35.1]} 28. a4 {[%clk 0:00:54.9]} 28... Qb6 {[%clk 0:00:32.9]} 29.
Nb3 {[%clk 0:00:34.6]} 29... Qxd4 {[%clk 0:00:32.5]} 30. Nxd4 {[%clk 0:00:33.3]}
30... Rb8 {[%clk 0:00:29.2]} 31. b3 {[%clk 0:00:29.5]} 31... e5 {[%clk
0:00:23.8]} 32. Nc6 {[%clk 0:00:29]} 32... Rb7 {[%clk 0:00:15.9]} 33. Nxa5
{[%clk 0:00:27.7]} 33... Rd7 {[%clk 0:00:14.2]} 34. Nc6 {[%clk 0:00:27.4]} 34...
d4 {[%clk 0:00:13.5]} 35. e4 {[%clk 0:00:25.6]} 35... Ba3 {[%clk 0:00:12.2]} 36.
Rd1 {[%clk 0:00:19.2]} 36... f6 {[%clk 0:00:11.8]} 37. b4+ {[%clk 0:00:18.5]}
37... Bf7 {[%clk 0:00:12.2]} 38. Bxf7+ {[%clk 0:00:17.8]} 38... Kxf7 {[%clk
0:00:13.1]} 39. b5 {[%clk 0:00:17]} 39... d3 {[%clk 0:00:11.5]} 40. Kf2 {[%clk
0:00:16.8]} 40... Bc5+ {[%clk 0:00:11.3]} 41. Ke1 {[%clk 0:00:16.8]} 41... Be3
{[%clk 0:00:11.5]} 42. a5 {[%clk 0:00:15.1]} 42... Rc7 {[%clk 0:00:11.6]} 43. a6
{[%clk 0:00:14.3]} 43... Rd7 {[%clk 0:00:11.3]} 44. Rb1 {[%clk 0:00:10.8]} 44...
d2+ {[%clk 0:00:10.7]} 45. Kd1 {[%clk 0:00:11.2]} 45... Bb6 {[%clk 0:00:10.5]}
46. Ra1 {[%clk 0:00:10.4]} 46... Be3 {[%clk 0:00:05.7]} 47. a7 {[%clk
0:00:10.5]} 47... Bxa7 {[%clk 0:00:05.8]} 48. Rxa7 {[%clk 0:00:10.8]} 48... Rxa7
{[%clk 0:00:05.9]} 49. Nxa7 {[%clk 0:00:11.5]} 49... Ke6 {[%clk 0:00:06.6]} 50.
b6 {[%clk 0:00:11.6]} 50... Kd7 {[%clk 0:00:07.1]} 51. b7 {[%clk 0:00:10.5]}
51... Kc7 {[%clk 0:00:07.4]} 52. b8=Q+ {[%clk 0:00:09.2]} 52... Kxb8 {[%clk
0:00:07.8]} 53. Nc6+ {[%clk 0:00:09.1]} 53... Kc7 {[%clk 0:00:08.7]} 54. Ne7
{[%clk 0:00:09.1]} 54... Kd6 {[%clk 0:00:08.8]} 55. Nf5+ {[%clk 0:00:09.3]}
55... Kc5 {[%clk 0:00:09.4]} 56. Nxg7 {[%clk 0:00:09.6]} 56... Kd4 {[%clk
0:00:10.1]} 57. Ne8 {[%clk 0:00:09.7]} 57... Ke3 {[%clk 0:00:10.5]} 58. Nxf6
{[%clk 0:00:10]} 58... Kf2 {[%clk 0:00:11.1]} 59. g4 {[%clk 0:00:09.4]} 59...
hxg4 {[%clk 0:00:07.5]} 60. fxg4 {[%clk 0:00:10.3]} 60... Kf3 {[%clk 0:00:08.3]}
61. h5 {[%clk 0:00:10.8]} 61... Kf4 {[%clk 0:00:08.5]} 62. h6 {[%clk 0:00:11.1]}
62... Kg5 {[%clk 0:00:09.4]} 63. h7 {[%clk 0:00:11.1]} 1-0

[Event "Early-Titled-Tuesday-Blitz-February-20-2024"]
[Site "Chess.com"]
[Date "2024.02.20"]
[Round "1"]
[White "chess94cu"]
[Black "AniJak"]
[Result "1-0"]
[WhiteElo "2669"]
[BlackElo "2326"]
[TimeControl "180+1"]
[EndTime "8:08:15 PST"]
[Termination "chess94cu won on time"]

1. Nf3 {[%clk 0:03:00.9]} 1... d5 {[%clk 0:02:59.4]} 2. c4 {[%clk 0:03:01]} 2...
c6 {[%clk 0:02:59.2]} 3. e3 {[%clk 0:03:01.4]} 3... Nf6 {[%clk 0:02:59]} 4. Nc3
{[%clk 0:03:00.1]} 4... e6 {[%clk 0:02:58]} 5. d4 {[%clk 0:02:57.5]} 5... Nbd7
{[%clk 0:02:56.7]} 6. b3 {[%clk 0:02:55.2]} 6... Bd6 {[%clk 0:02:55.6]} 7. Bd3
{[%clk 0:02:51.4]} 7... O-O {[%clk 0:02:55.1]} 8. O-O {[%clk 0:02:51.7]} 8...
Qe7 {[%clk 0:02:53.8]} 9. Bb2 {[%clk 0:02:49]} 9... dxc4 {[%clk 0:02:51.1]} 10.
Bxc4 {[%clk 0:02:43.7]} 10... e5 {[%clk 0:02:50.7]} 11. h3 {[%clk 0:02:38.5]}
11... e4 {[%clk 0:02:41.8]} 12. Nd2 {[%clk 0:02:36.2]} 12... Nb6 {[%clk
0:02:37.8]} 13. Be2 {[%clk 0:02:23.4]} 13... Bf5 {[%clk 0:02:36.1]} 14. a4
{[%clk 0:02:21.6]} 14... Rfe8 {[%clk 0:02:24.1]} 15. a5 {[%clk 0:02:18.2]} 15...
Nbd5 {[%clk 0:02:23.8]} 16. Nc4 {[%clk 0:01:57.9]} 16... Bb8 {[%clk 0:02:17.8]}
17. a6 {[%clk 0:01:49.6]} 17... Qc7 {[%clk 0:02:13.9]} 18. Ne5 {[%clk
0:01:44.1]} 18... Nxc3 {[%clk 0:01:54]} 19. Bxc3 {[%clk 0:01:42.9]} 19... b6
{[%clk 0:01:49.6]} 20. Bc4 {[%clk 0:01:33.9]} 20... Bg6 {[%clk 0:01:44.7]} 21.
f3 {[%clk 0:01:30.9]} 21... b5 {[%clk 0:01:37.4]} 22. Be2 {[%clk 0:01:16.9]}
22... Nd5 {[%clk 0:01:36.1]} 23. Ba5 {[%clk 0:01:15.6]} 23... Qd6 {[%clk
0:01:32.3]} 24. Qd2 {[%clk 0:01:08.4]} 24... f6 {[%clk 0:01:26.9]} 25. f4 {[%clk
0:01:02.2]} 25... fxe5 {[%clk 0:01:20.1]} 26. fxe5 {[%clk 0:01:03.1]} 26... Qe7
{[%clk 0:01:05.6]} 27. Rac1 {[%clk 0:00:32.9]} 27... Qg5 {[%clk 0:01:04.8]} 28.
Rxc6 {[%clk 0:00:31.8]} 28... Nxe3 {[%clk 0:01:03]} 29. Rf2 {[%clk 0:00:31.8]}
29... Qg3 {[%clk 0:00:41.6]} 30. Rc3 {[%clk 0:00:25.8]} 30... Nf1 {[%clk
0:00:17.6]} 31. Bxf1 {[%clk 0:00:16.3]} 31... Qh4 {[%clk 0:00:13.9]} 32. Qf4
{[%clk 0:00:12.9]} 32... Qxf4 {[%clk 0:00:11.9]} 33. Rxf4 {[%clk 0:00:13.8]}
33... e3 {[%clk 0:00:10.9]} 34. Rxe3 {[%clk 0:00:12.3]} 34... Bd6 {[%clk
0:00:11.5]} 35. Bd3 {[%clk 0:00:09]} 35... Bf8 {[%clk 0:00:10.4]} 36. Bxg6
{[%clk 0:00:08.3]} 36... hxg6 {[%clk 0:00:11.3]} 37. Rg4 {[%clk 0:00:08.7]}
37... Rad8 {[%clk 0:00:11.4]} 38. Ree4 {[%clk 0:00:08.3]} 38... Rd7 {[%clk
0:00:10.4]} 39. Rxg6 {[%clk 0:00:08.3]} 39... Rf7 {[%clk 0:00:10.4]} 40. Rc6
{[%clk 0:00:08.6]} 40... Rf5 {[%clk 0:00:09.3]} 41. g4 {[%clk 0:00:08.1]} 41...
Rf3 {[%clk 0:00:08.8]} 42. Rc3 {[%clk 0:00:05.8]} 42... Rxc3 {[%clk 0:00:05.3]}
43. Bxc3 {[%clk 0:00:06.7]} 43... Kf7 {[%clk 0:00:05.3]} 44. Kg2 {[%clk
0:00:06.7]} 44... Ke6 {[%clk 0:00:05.5]} 45. Ba5 {[%clk 0:00:06.7]} 45... Kd5
{[%clk 0:00:05.5]} 46. Rf4 {[%clk 0:00:07.2]} 46... Ba3 {[%clk 0:00:02.8]} 47.
Kf3 {[%clk 0:00:07.6]} 47... Re7 {[%clk 0:00:02.7]} 48. Ke2 {[%clk 0:00:07.8]}
48... Bb2 {[%clk 0:00:02.5]} 49. Kd3 {[%clk 0:00:08.1]} 49... Ba1 {[%clk
0:00:02.9]} 50. Bb4 {[%clk 0:00:07.8]} 50... Rd7 {[%clk 0:00:03]} 51. Bc5 {[%clk
0:00:08.4]} 51... Ke6 {[%clk 0:00:03]} 52. Ke4 {[%clk 0:00:07.8]} 52... Bb2
{[%clk 0:00:02.5]} 53. Rf8 {[%clk 0:00:07.5]} 53... Bc1 {[%clk 0:00:02.2]} 54.
Rb8 {[%clk 0:00:07.7]} 54... Kf7 {[%clk 0:00:02.7]} 55. Rb7 {[%clk 0:00:08.4]}
55... Rxb7 {[%clk 0:00:02.9]} 56. axb7 {[%clk 0:00:09.3]} 1-0